bitfinex-derivatives/quotes_SOLF0:USTF0_20250626
["timestamp","ask_amount","ask_price","bid_price","bid_amount"]
[1750963285807,7.0784,141.23,141.2,9.5955]
[1750963288315,7.0784,141.23,141.21,7.0791]
[1750963288612,7.0779,141.24,141.21,7.0791]
[1750963290617,7.0782,141.23,141.21,7.0791]
[1750963293005,7.0778,141.24,141.22,7.0787]
[1750963294908,4.6020143,141.24,141.17,11.20283566]
[1750963295110,4.6020143,141.22,141.17,2.4138]
[1750963295317,7.0801,141.2,141.18,7.0803]
[1750963295617,7.0801,141.2,141.17,2.4138]
[1750963296212,7.0801,141.2,141.17,9.4946]
[1750963296415,7.0802,141.19,141.17,9.4946]
[1750963298017,7.0798,141.2,141.18,7.0807]
[1750963299722,2.4854092,141.23,141.17,9.4947]
[1750963299919,2.4854092,141.22,141.17,9.4947]
[1750963300121,7.0807,141.18,141.17,8.78903566]
[1750963300319,4.6020143,141.22,141.16,46.18903566]
[1750963301514,7.0811,141.18,141.16,53.27053566]
[1750963302516,7.0812,141.17,141.16,46.18903566]
[1750963304115,7.0809,141.18,141.16,53.27063566]
[1750963304318,7.0809,141.18,141.16,46.18903566]
[1750963304719,2.48209099,141.21,141.16,37.4]
[1750963304922,2.48209099,141.2,141.16,37.4]
[1750963305121,8.98576127,141.22,141.16,37.4]
[1750963305122,4.6020143,141.22,141.16,37.4]
[1750963305323,7.0809,141.18,141.16,37.4]
[1750963305523,7.0809,141.18,141.16,44.4816]
[1750963305721,4.6020143,141.22,141.16,37.4]
[1750963305920,7.0812,141.17,141.16,37.4]
[1750963306524,38.832,141.24,141.16,37.4]
[1750963306728,7.08347075,141.23,141.16,46.18903566]
[1750963306922,7.0805,141.19,141.16,46.18903566]
[1750963307227,7.0805,141.19,141.16,37.4]
[1750963307421,7.0805,141.19,141.17,7.0812]
[1750963312131,7.0799,141.2,141.18,7.0807]
[1750963312332,42.0020143,141.24,141.17,4.6020143]
[1750963312634,2.47612036,141.23,141.17,13.39104996]
[1750963312830,7.0796,141.21,141.18,7.0804]
[1750963313433,42.0020143,141.24,141.18,7.0804]
[1750963313434,7.0797,141.2,141.18,7.0804]
[1750963313629,37.4,141.24,141.17,4.6020143]
[1750963313828,2.47835416,141.23,141.17,4.6020143]
[1750963314028,37.4,141.24,141.17,4.6020143]
[1750963314232,2.47840266,141.23,141.18,7.0803]
[1750963314430,37.4,141.24,141.18,7.0803]
[1750963314631,7.08,141.2,141.18,7.0803]
[1750963314830,7.08,141.2,141.17,7.0809]
[1750963315330,7.08,141.2,141.16,50.79104996]
[1750963315533,7.08,141.2,141.18,7.0804]
[1750963318332,7.0794,141.21,141.19,7.0802]
[1750963319033,7.0797,141.2,141.19,7.0802]
[1750963319433,7.0797,141.2,141.18,7.0804]
[1750963324133,7.0797,141.2,141.19,7.0802]
[1750963325135,4.6020143,141.23,141.19,7.0802]
[1750963325341,4.39987706,141.25,141.19,4.6020143]
[1750963325544,4.39987706,141.29,141.23,4.6020143]
[1750963325839,4.6020143,141.31,141.25,11.6789143]
[1750963326035,2.48593946,141.3,141.25,11.6789143]
[1750963326234,7.076,141.28,141.25,11.6789143]
[1750963326640,9.00545434,141.31,141.25,11.6789143]
[1750963326842,2.48470644,141.3,141.25,11.6789143]
[1750963327043,2.48470644,141.29,141.24,37.3]
[1750963327246,2.48470644,141.28,141.22,11.29243566]
[1750963327543,2.48470644,141.27,141.22,18.37103566]
[1750963327745,41.9020143,141.29,141.22,9.582]
[1750963328041,2.49225109,141.28,141.22,9.582]
[1750963328241,7.0774,141.25,141.22,9.582]
[1750963329638,7.0778,141.24,141.22,9.582]
[1750963331344,4.6020143,141.27,141.21,37.3]
[1750963331543,4.6020143,141.25,141.2,2.4975]
[1750963332341,7.0792,141.21,141.2,2.4975]
[1750963332947,7.0789,141.22,141.2,2.4975]
[1750963333344,4.6020143,141.25,141.2,2.4975]
[1750963334350,7.0789,141.22,141.2,2.4975]
[1750963334646,7.0792,141.21,141.2,2.4975]
[1750963334950,4.6020143,141.23,141.17,45.96903566]
[1750963335249,4.6020143,141.23,141.17,44.2609]
[1750963335250,7.0801,141.2,141.17,44.2609]
[1750963336846,7.0789,141.22,141.17,41.7820143]
[1750963337147,7.0789,141.22,141.17,50.57104996]
[1750963337550,7.0789,141.22,141.19,7.0798]
[1750963338948,7.0782,141.23,141.17,50.57104996]
[1750963339154,7.0782,141.23,141.19,4.6020143]
[1750963339456,7.0782,141.23,141.2,7.0793]
[1750963339651,7.0782,141.23,141.19,4.6020143]
[1750963340047,7.0782,141.23,141.2,7.0793]
[1750963341445,7.0787,141.22,141.19,4.6020143]
[1750963342046,7.0787,141.22,141.19,11.6817143]
[1750963342251,7.0787,141.22,141.19,4.6020143]
[1750963342750,7.0787,141.22,141.2,7.0796]
[1750963348547,2.48121989,141.24,141.19,7.0798]
[1750963348751,4.6020143,141.23,141.17,50.57104996]
[1750963349350,4.6020143,141.23,141.17,57.65194996]
[1750963349655,4.6020143,141.23,141.17,50.57104996]
[1750963349952,4.6020143,141.23,141.18,7.0804]
[1750963350362,41.7820143,141.25,141.19,7.0802]
[1750963350559,2.48198074,141.24,141.18,8.78903566]
[1750963350763,41.7820143,141.25,141.18,8.78903566]
[1750963351563,2.48230353,141.24,141.18,8.78903566]
[1750963351768,41.7820143,141.25,141.18,8.78903566]
[1750963351968,2.48217558,141.24,141.19,7.0799]
[1750963352269,41.7820143,141.25,141.19,7.0799]
[1750963352469,2.48246006,141.24,141.19,7.0799]
[1750963352768,41.7820143,141.25,141.19,7.0799]
[1750963353066,2.48249826,141.24,141.19,7.0799]
[1750963353267,7.0791,141.22,141.19,7.0799]
[1750963353859,41.7820143,141.25,141.19,7.0799]
[1750963353860,7.0792,141.21,141.19,7.0799]
[1750963355969,7.0789,141.22,141.18,8.78903566]
[1750963356463,41.7820143,141.25,141.18,8.78903566]
[1750963356669,7.079,141.22,141.2,7.0796]
[1750963358665,2.48359503,141.24,141.19,13.39104996]
[1750963358871,37.18,141.25,141.21,8.78903566]
[1750963359566,7.0782,141.23,141.21,7.0789]
[1750963360370,7.0787,141.22,141.2,7.0794]
[1750963361171,37.18,141.25,141.18,8.78903566]
[1750963361172,4.6020143,141.23,141.18,8.78903566]
[1750963361470,4.6020143,141.23,141.17,45.96903566]
[1750963362470,7.0801,141.2,141.17,53.04993566]
[1750963362972,7.0803,141.19,141.17,53.04993566]
[1750963363668,4.6020143,141.23,141.17,8.78903566]
[1750963363868,4.6020143,141.21,141.16,2.3197]
[1750963364169,2.48371966,141.2,141.16,2.3197]
[1750963364373,4.6020143,141.21,141.16,2.3197]
[1750963365272,4.6020143,141.23,141.16,2.3197]
[1750963365465,7.0794,141.21,141.17,4.6020143]
[1750963365667,41.7820143,141.25,141.19,4.6020143]
[1750963365866,7.0789,141.22,141.2,7.0794]
[1750963367161,7.0789,141.22,141.19,11.6819143]
[1750963367366,41.7820143,141.25,141.18,11.14903566]
[1750963367562,2.48728434,141.24,141.18,2.36]
[1750963367776,41.7820143,141.25,141.18,2.36]
[1750963368074,7.0799,141.2,141.18,2.36]
[1750963368472,7.0799,141.2,141.18,9.4406]
[1750963368671,7.0799,141.2,141.18,18.22963566]
[1750963371162,7.0794,141.21,141.18,18.22963566]
[1750963371680,37.18,141.25,141.18,15.75104996]
[1750963371863,7.0789,141.22,141.18,15.75104996]
[1750963372568,7.0789,141.22,141.19,7.0801]
[1750963373370,7.0789,141.22,141.2,7.0796]
[1750963376181,37.18,141.25,141.19,8.78903566]
[1750963376381,2.48844276,141.24,141.19,8.78903566]
[1750963376582,2.48844276,141.23,141.19,8.78903566]
[1750963376774,7.079,141.22,141.2,7.0797]
[1750963377082,41.7820143,141.25,141.18,11.14903566]
[1750963377276,7.0799,141.2,141.18,18.22943566]
[1750963378686,7.0802,141.19,141.18,11.14903566]
[1750963379179,7.0802,141.19,141.17,57.53204996]
[1750963380583,7.0807,141.18,141.17,45.84903566]
[1750963382590,4.6020143,141.23,141.17,45.84903566]
[1750963382790,2.49680823,141.22,141.17,45.84903566]
[1750963382980,7.0804,141.19,141.17,52.93013566]
[1750963383887,7.0799,141.2,141.18,15.86973566]
[1750963384485,37.18,141.25,141.18,8.78903566]
[1750963384486,41.7820143,141.25,141.18,8.78903566]
[1750963384688,6.92592312,141.24,141.18,8.78903566]
[1750963384989,2.49807041,141.23,141.18,8.78903566]
[1750963385193,7.0796,141.21,141.19,7.0801]
[1750963387486,7.0796,141.21,141.19,15.86913566]
[1750963388994,7.0789,141.22,141.2,7.0796]
[1750963389892,7.0793,141.21,141.19,15.86893566]
[1750963390190,7.0793,141.21,141.19,7.0799]
[1750963390389,41.7820143,141.25,141.18,15.86943566]
[1750963390390,7.0797,141.2,141.18,15.86943566]
[1750963392494,7.0802,141.19,141.18,8.78903566]
[1750963395898,7.0799,141.2,141.18,15.86973566]
[1750963396587,7.0794,141.21,141.19,15.86893566]
[1750963400496,7.0789,141.22,141.2,7.0797]
[1750963401000,7.0789,141.22,141.19,8.78903566]
[1750963402301,7.0789,141.22,141.19,15.86883566]
[1750963404502,7.0789,141.22,141.2,15.86853566]
[1750963404702,7.0784,141.23,141.2,8.78903566]
[1750963405003,7.0784,141.23,141.21,7.0792]
[1750963406298,7.0787,141.22,141.2,15.86843566]
[1750963408707,7.0783,141.23,141.21,7.0792]
[1750963409098,37.18,141.25,141.2,8.78903566]
[1750963409299,7.0787,141.22,141.2,15.86843566]
[1750963411808,7.0784,141.23,141.21,7.0792]
[1750963412102,37.18,141.25,141.21,7.0792]
[1750963412307,2.4953935,141.24,141.21,7.0792]
[1750963412503,2.4953935,141.23,141.21,7.0792]
[1750963412705,37.18,141.25,141.21,7.0792]
[1750963412903,7.0787,141.22,141.2,15.86843566]
[1750963413212,7.0787,141.22,141.2,7.0794]
[1750963413509,7.0787,141.22,141.2,15.86843566]
[1750963414811,7.0784,141.23,141.21,7.0792]
[1750963415013,37.18,141.25,141.21,7.0792]
[1750963415313,2.49669112,141.24,141.21,7.0792]
[1750963415615,37.18,141.25,141.21,7.0792]
[1750963415912,37.18,141.25,141.2,15.86843566]
[1750963415913,7.0787,141.22,141.2,15.86843566]
[1750963420214,7.0787,141.22,141.2,18.80773116]
[1750963420512,7.0785,141.23,141.21,10.0184955]
[1750963420811,255.48916276,141.32,141.22,2.9392955]
[1750963420812,123.41011803,141.32,141.22,2.9392955]
[1750963421016,6.92670997,141.31,141.28,2.9392955]
[1750963421220,2.49593843,141.3,141.28,2.9392955]
[1750963421404,126.34941353,141.32,141.28,9.55289238]
[1750963421604,7.0746,141.3,141.29,6.61359688]
[1750963422210,7.0751,141.29,141.28,6.61359688]
[1750963423319,36.94,141.32,141.28,6.61359688]
[1750963423510,4.41983315,141.34,141.28,6.61359688]
[1750963423814,7.0745,141.31,141.28,13.68879688]
[1750963424216,7.0745,141.31,141.28,7.0752]
[1750963424414,7.0748,141.3,141.27,18.27695912]
[1750963424621,45.82729539,141.35,141.27,18.27695912]
[1750963425007,7.0748,141.3,141.27,18.27695912]
[1750963425718,7.0748,141.3,141.27,11.66336224]
[1750963428614,7.0748,141.3,141.28,7.0756]
[1750963428811,7.0748,141.3,141.27,4.58746224]
[1750963429213,7.0748,141.3,141.27,11.66316224]
[1750963429418,7.0748,141.3,141.27,4.58746224]
[1750963429818,7.0748,141.3,141.28,7.0756]
[1750963430820,41.40746224,141.35,141.28,7.0756]
[1750963431119,7.0739,141.32,141.29,4.58746224]
[1750963431310,7.0739,141.32,141.29,41.38746224]
[1750963431714,7.0743,141.31,141.29,41.38746224]
[1750963432418,7.0743,141.31,141.29,48.46256224]
[1750963439524,7.0739,141.32,141.29,48.46256224]
[1750963440428,7.0734,141.33,141.3,7.0746]
[1750963440617,7.0734,141.33,141.29,41.38746224]
[1750963440927,7.0719,141.36,141.31,4.58746224]
[1750963441117,87.54831402,141.39,141.33,4.58746224]
[1750963441317,87.54831402,141.39,141.33,41.38746224]
[1750963442516,7.0714,141.37,141.33,41.38746224]
[1750963443320,7.0714,141.37,141.35,11.65946224]
[1750963443522,638.1079,141.45,141.35,11.65946224]
[1750963443523,4.58746224,141.49,141.36,4.58746224]
[1750963443827,8.99915609,141.48,141.41,11.65646224]
[1750963444026,4.58746224,141.48,141.41,11.65646224]
[1750963444229,5.83763056,141.49,141.37,36.8]
[1750963444414,4.58746224,141.45,141.38,11.65786224]
[1750963444619,7.069,141.42,141.38,4.58746224]
[1750963444928,7.069,141.42,141.39,7.0699]
[1750963445119,4.58746224,141.45,141.38,4.58746224]
[1750963445526,4.58746224,141.45,141.39,7.0701]
[1750963445731,7.0689,141.42,141.39,7.0701]
[1750963446724,7.0697,141.4,141.37,36.8]
[1750963446927,4.58746224,141.43,141.36,4.58746224]
[1750963447322,7.0699,141.4,141.37,7.0708]
[1750963448133,7.0699,141.4,141.36,11.65896224]
[1750963449726,4.58746224,141.43,141.36,4.58746224]
[1750963449925,9.38388834,141.47,141.36,4.58746224]
[1750963450132,7.0681,141.44,141.39,4.58746224]
[1750963450330,7.0681,141.44,141.39,41.36746224]
[1750963450730,7.0681,141.44,141.4,7.0693]
[1750963451029,7.0681,141.44,141.39,41.36746224]
[1750963451235,36.78,141.47,141.39,41.36746224]
[1750963451734,7.0668,141.46,141.43,7.0681]
[1750963452429,7.0668,141.46,141.42,7.0684]
[1750963453125,7.0673,141.45,141.42,7.0684]
[1750963456134,6.01536224,141.49,141.41,4.58746224]
[1750963456328,6.01536224,141.49,141.4,2.4805]
[1750963456633,6.01536224,141.49,141.41,4.58746224]
[1750963456835,7.0674,141.45,141.42,7.0685]
[1750963458943,7.0678,141.44,141.42,7.0685]
[1750963459540,7.0674,141.45,141.42,7.0685]
[1750963461233,7.0677,141.44,141.42,7.0685]
[1750963461539,6.01536224,141.49,141.42,7.0685]
[1750963462534,4.58746224,141.47,141.4,2.4805]
[1750963462724,4.58746224,141.47,141.39,41.22746224]
[1750963463226,6.01536224,141.49,141.41,4.58746224]
[1750963463630,7.0674,141.45,141.42,7.0682]
[1750963463829,6.01536224,141.49,141.43,4.58746224]
[1750963464026,1.4279,141.49,141.43,4.58746224]
[1750963464429,1.4279,141.49,141.43,41.22746224]
[1750963464642,36.78,141.5,141.43,41.22746224]
[1750963465139,7.0669,141.46,141.44,7.0676]
[1750963465526,46.18971694,141.5,141.43,41.22746224]
[1750963465734,7.0665,141.47,141.45,4.58746224]
[1750963467629,7.0666,141.46,141.45,4.58746224]
[1750963467936,4.58746224,141.5,141.43,2.4052]
[1750963468232,14.1292,141.51,141.42,36.64]
[1750963468233,4.58746224,141.48,141.42,36.64]
[1750963468636,36.64,141.49,141.43,4.58746224]
[1750963468832,4.58746224,141.5,141.43,4.58746224]
[1750963469437,7.067,141.46,141.43,4.58746224]
[1750963469939,7.067,141.46,141.43,11.65556224]
[1750963470138,7.0672,141.45,141.43,4.58746224]
[1750963471137,7.0669,141.46,141.43,11.65536224]
[1750963471339,4.58746224,141.51,141.43,11.65536224]
[1750963471637,4.58746224,141.49,141.43,4.58746224]
[1750963472133,7.0675,141.45,141.43,4.58746224]
[1750963473533,23.57489492,141.51,141.42,36.64]
[1750963473740,18.71606224,141.51,141.43,4.58746224]
[1750963474131,7.0671,141.46,141.43,11.65556224]
[1750963477543,7.0671,141.46,141.44,7.0676]
[1750963479049,7.0671,141.46,141.43,11.65546224]
[1750963479447,7.0673,141.45,141.43,11.65546224]
[1750963480543,9.4765702,141.51,141.43,138.84]
[1750963480750,4.58746224,141.52,141.44,4.58746224]
[1750963481137,14.07790603,141.52,141.44,11.65476224]
[1750963481336,4.58746224,141.52,141.44,4.58746224]
[1750963481557,7.0671,141.46,141.44,4.58746224]
[1750963482248,18.71486224,141.52,141.44,4.58746224]
[1750963482249,7.0672,141.45,141.44,4.58746224]
[1750963483853,7.0672,141.45,141.43,150.49546224]
[1750963484052,7.0672,141.45,141.43,143.42746224]
[1750963485549,7.0672,141.45,141.43,150.49556224]
[1750963486053,7.0672,141.45,141.43,143.42746224]
[1750963487651,88.43518257,141.55,141.44,7.0674]
[1750963487855,4.57446322,141.53,141.45,4.57446322]
[1750963488051,9.48268528,141.52,141.45,4.57446322]
[1750963488247,14.05905887,141.51,141.43,143.41637359]
[1750963488448,9.48268528,141.5,141.43,143.41637359]
[1750963488659,9.48268528,141.49,141.43,143.41637359]
[1750963488954,41.15637359,141.51,141.43,143.41637359]
[1750963488955,5.0114017,141.48,141.43,143.41637359]
[1750963489150,4.47459035,141.49,141.43,143.41637359]
[1750963489353,7.0677,141.44,141.43,143.41637359]
[1750963490757,5.01646434,141.48,141.43,150.48427359]
[1750963491052,36.58,141.51,141.45,4.57637359]
[1750963491258,7.0654,141.49,141.45,11.64317359]
[1750963491556,7.0654,141.49,141.46,36.58]
[1750963492155,7.0654,141.49,141.46,43.6464]
[1750963492550,43.44317359,141.54,141.48,7.0656]
[1750963492755,9.44326144,141.53,141.48,7.0656]
[1750963492953,43.44317359,141.54,141.48,7.0656]
[1750963493152,7.0644,141.51,141.48,7.0656]
[1750963494253,47.86017136,141.54,141.47,2.3803]
[1750963494449,9.44422947,141.53,141.47,2.3803]
[1750963494754,7.0654,141.49,141.47,2.3803]
[1750963494955,4.57637359,141.52,141.46,36.58]
[1750963495451,7.0659,141.48,141.46,36.58]
[1750963496162,7.0654,141.49,141.46,36.58]
[1750963496762,7.0654,141.49,141.46,43.6463]
[1750963496961,4.57637359,141.52,141.46,43.6463]
[1750963496962,7.0649,141.5,141.46,36.58]
[1750963497262,4.57637359,141.52,141.46,36.58]
[1750963497462,4.57637359,141.52,141.47,7.0659]
[1750963498066,7.0649,141.5,141.47,7.0659]
[1750963498759,7.0652,141.49,141.47,7.0659]
[1750963499158,7.0652,141.49,141.46,43.6464]
[1750963499359,7.0652,141.49,141.46,36.58]
[1750963499563,7.0649,141.5,141.47,7.066]
[1750963500463,4.57637359,141.52,141.46,36.58]
[1750963500668,4.57637359,141.52,141.45,52.47429495]
[1750963501166,7.0657,141.48,141.46,7.0664]
[1750963502065,7.0657,141.48,141.45,43.64667359]
[1750963502468,7.0657,141.48,141.45,59.54109495]
[1750963502674,7.0657,141.48,141.45,50.71347359]
[1750963503268,7.0657,141.48,141.46,7.0666]
[1750963503659,7.0654,141.49,141.46,7.0666]
[1750963504264,4.57637359,141.52,141.46,7.0666]
[1750963505560,4.57637359,141.5,141.45,36.58]
[1750963506064,4.57637359,141.48,141.43,8.82762136]
[1750963506270,4.57637359,141.48,141.41,15.55233205]
[1750963506271,4.57637359,141.46,141.41,36.58]
[1750963506572,7.068,141.44,141.41,43.6489]
[1750963506772,4.57637359,141.46,141.41,36.58]
[1750963506973,4.57637359,141.44,141.41,36.58]
[1750963507175,4.57637359,141.44,141.38,651.97802136]
[1750963507377,4.57637359,141.44,141.38,7.0704]
[1750963507568,7.0697,141.4,141.38,7.0704]
[1750963507871,4.57637359,141.44,141.37,36.58]
[1750963508175,4.57637359,141.44,141.37,45.40762136]
[1750963508672,7.0694,141.41,141.38,7.0704]
[1750963508874,4.57637359,141.44,141.37,45.40762136]
[1750963509567,7.0689,141.42,141.39,7.0699]
[1750963510168,5.05422736,141.44,141.39,4.57637359]
[1750963510473,36.58,141.45,141.39,13.40399495]
[1750963510675,41.63392075,141.45,141.41,7.0689]
[1750963510869,41.63392075,141.45,141.39,4.57637359]
[1750963511173,7.0685,141.43,141.4,7.0694]
[1750963511782,4.41982102,141.48,141.39,4.57637359]
[1750963511982,5.05385641,141.47,141.41,13.40399495]
[1750963512186,8.99621327,141.48,141.41,49.98399495]
[1750963512388,9.56812185,141.48,141.41,49.98399495]
[1750963512793,4.57637359,141.44,141.38,47.76312136]
[1750963513182,7.0685,141.43,141.39,7.0698]
[1750963513890,7.0687,141.42,141.39,7.0698]
[1750963515177,4.57637359,141.44,141.38,45.40762136]
[1750963515178,7.0684,141.43,141.4,7.0695]
[1750963522996,7.0687,141.42,141.4,7.0695]
[1750963524695,4.57637359,141.46,141.38,45.40762136]
[1750963524696,7.0684,141.43,141.38,45.40762136]
[1750963524999,4.57637359,141.46,141.41,7.0691]
[1750963525294,7.068,141.44,141.41,7.0691]
[1750963527498,7.068,141.44,141.39,4.57637359]
[1750963528002,7.068,141.44,141.42,7.0684]
[1750963528498,7.068,141.44,141.41,7.0689]
[1750963528699,7.068,141.44,141.39,4.57637359]
[1750963529199,7.0673,141.45,141.39,4.57637359]
[1750963529598,38.8616,141.49,141.41,4.57637359]
[1750963529786,7.0664,141.47,141.43,4.57637359]
[1750963530187,7.0664,141.47,141.45,7.0671]
[1750963530601,7.0659,141.48,141.45,7.0671]
[1750963531093,41.11637359,141.52,141.45,4.57637359]
[1750963531293,7.0654,141.49,141.45,4.57637359]
[1750963531896,7.0658,141.48,141.45,4.57637359]
[1750963532302,7.0658,141.48,141.45,11.64307359]
[1750963533507,7.0658,141.48,141.45,7.0667]
[1750963533809,41.11637359,141.52,141.45,7.0667]
[1750963534003,46.13576748,141.52,141.45,7.0667]
[1750963534204,7.0659,141.48,141.45,7.0667]
[1750963534803,2.5132,141.54,141.45,4.57637359]
[1750963535010,9.5962449,141.53,141.45,4.57637359]
[1750963535210,43.47043094,141.54,141.43,8.82762136]
[1750963535211,11.95030225,141.54,141.46,36.54]
[1750963535508,7.53280326,141.54,141.47,4.57637359]
[1750963536098,7.064,141.52,141.49,7.0651]
[1750963536504,7.064,141.52,141.47,4.57637359]
[1750963536713,7.064,141.52,141.48,7.0652]
[1750963537314,7.064,141.52,141.49,7.0651]
[1750963539316,7.0634,141.53,141.47,4.57637359]
[1750963539521,7.0634,141.53,141.48,2.4137]
[1750963539710,88.43518257,141.55,141.49,4.57637359]
[1750963539913,7.0632,141.53,141.5,7.0644]
[1750963540119,88.43518257,141.55,141.5,7.0644]
[1750963540307,7.0636,141.53,141.5,7.0644]
[1750963542010,7.0636,141.53,141.51,7.0642]
[1750963543017,7.0636,141.53,141.5,7.0644]
[1750963543317,7.0636,141.53,141.48,6.99007359]
[1750963543811,88.43518257,141.55,141.5,4.57637359]
[1750963544004,88.43518257,141.55,141.5,41.09637359]
[1750963544407,7.0635,141.53,141.5,48.16057359]
[1750963545121,7.0629,141.54,141.5,41.09637359]
[1750963545317,41.11637359,141.57,141.5,41.09637359]
[1750963545815,41.11637359,141.57,141.52,7.0634]
[1750963546214,36.54,141.57,141.53,7.0629]
[1750963546405,41.56843182,141.6,141.53,7.0629]
[1750963546606,4.57637359,141.59,141.53,7.0629]
[1750963547413,38.8236,141.6,141.54,4.57637359]
[1750963547712,38.8236,141.6,141.5,38.8299]
[1750963547920,38.8236,141.6,141.56,7.0612]
[1750963548108,38.8236,141.6,141.5,47.65752136]
[1750963548109,2.3036,141.6,141.55,4.57637359]
[1750963548309,9.48143039,141.62,141.55,4.57637359]
[1750963548522,5.04843182,141.62,141.57,4.57637359]
[1750963548718,36.46,141.63,141.57,4.57637359]
[1750963549024,4.57637359,141.6,141.52,8.82762136]
[1750963549214,4.57637359,141.6,141.52,36.46]
[1750963549526,7.0615,141.57,141.53,7.0629]
[1750963549719,4.57637359,141.6,141.53,7.0629]
[1750963549913,2.5179,141.59,141.54,7.0625]
[1750963550113,4.57637359,141.58,141.52,36.46]
[1750963551318,7.0621,141.56,141.53,7.063]
[1750963551517,4.57637359,141.58,141.53,7.063]
[1750963551913,7.0619,141.56,141.53,7.063]
[1750963552320,7.0619,141.56,141.52,36.46]
[1750963553018,7.0622,141.55,141.53,7.0629]
[1750963553322,7.0622,141.55,141.52,36.46]
[1750963554025,7.0619,141.56,141.53,7.0631]
[1750963556012,7.0619,141.56,141.54,7.0626]
[1750963556622,7.0619,141.56,141.53,7.0629]
[1750963558027,7.0614,141.57,141.54,7.0622]
[1750963558722,7.0614,141.57,141.52,36.46]
[1750963558723,7.0614,141.57,141.55,7.0621]
[1750963559021,7.0609,141.58,141.55,7.0621]
[1750963559421,7.06,141.6,141.55,4.57637359]
[1750963559816,7.06,141.6,141.57,7.0609]
[1750963560222,7.0594,141.61,141.56,36.46]
[1750963560417,2.4494,141.63,141.59,7.0598]
[1750963560627,2.4494,141.63,141.57,4.57637359]
[1750963561124,2.4494,141.63,141.58,7.0604]
[1750963561626,7.0594,141.61,141.58,7.0604]
[1750963562821,36.46,141.65,141.59,4.57637359]
[1750963563022,38.8611,141.68,141.61,4.57637359]
[1750963563327,38.8611,141.68,141.62,7.0584]
[1750963563328,7.0574,141.65,141.62,7.0584]
[1750963566227,7.0574,141.65,141.6,41.03637359]
[1750963566228,4.57637359,141.66,141.6,36.46]
[1750963567421,7.0589,141.62,141.6,36.46]
[1750963568124,7.0584,141.63,141.6,36.46]
[1750963568331,4.57637359,141.66,141.6,36.46]
[1750963569331,7.0589,141.62,141.6,36.46]
[1750963569827,7.0589,141.62,141.6,43.5196]
[1750963570028,7.0584,141.63,141.6,43.5196]
[1750963570418,4.57637359,141.66,141.6,36.46]
[1750963570833,7.0588,141.62,141.6,36.46]
[1750963571031,4.57637359,141.66,141.6,41.03637359]
[1750963572129,7.058,141.64,141.61,7.0591]
[1750963572824,7.0573,141.65,141.62,7.0584]
[1750963573422,7.0573,141.65,141.6,41.03637359]
[1750963573619,7.0569,141.66,141.62,4.57637359]
[1750963573820,7.0569,141.66,141.63,7.0579]
[1750963574626,7.0573,141.65,141.63,7.0579]
[1750963575024,7.0573,141.65,141.62,11.63487359]
[1750963575425,7.0569,141.66,141.63,7.0578]
[1750963575627,2.4011,141.68,141.62,4.57637359]
[1750963576432,7.0574,141.65,141.62,4.57637359]
[1750963577629,7.0574,141.65,141.63,7.0581]
[1750963580231,7.0582,141.63,141.61,2.2825]
[1750963580428,4.57637359,141.67,141.6,36.46]
[1750963580625,4.57637359,141.67,141.6,43.5195]
[1750963580626,7.0586,141.63,141.6,43.5195]
[1750963580927,4.57637359,141.61,141.55,2.3605]
[1750963581127,4.57637359,141.61,141.56,7.0613]
[1750963581128,7.0604,141.59,141.56,7.0613]
[1750963581323,4.57637359,141.61,141.55,2.3605]
[1750963581724,7.0612,141.57,141.55,2.3605]
[1750963582029,5.19055024,141.6,141.53,40.97637359]
[1750963582235,7.0617,141.56,141.53,43.463]
[1750963582930,7.0622,141.55,141.53,43.463]
[1750963583130,4.57637359,141.59,141.53,36.4]
[1750963583332,36.4,141.58,141.52,7.0634]
[1750963584334,36.4,141.58,141.51,2.3605]
[1750963584524,7.0622,141.55,141.51,2.3605]
[1750963584838,4.57637359,141.57,141.51,9.4244]
[1750963585236,7.0627,141.54,141.51,9.4244]
[1750963586530,7.0633,141.53,141.5,48.04077359]